[Event "*** Titled Tuesday 3|2 Blitz"]
[Site "Chess.com"]
[Date "2015.11.03"]
[Round "9"]
[White "WanderingPuppet"]
[Black "ilmago"]
[Result "1-0"]
[WhiteElo "2162"]
[BlackElo "1899"]
[TimeControl "180+2"]
[EndTime "18:55:11 PST"]
[Termination "WanderingPuppet won by resignation"]

1. e4 {[%clk 0:03:01.9]} 1... c5 {[%clk 0:03:00.5]} 2. Nf3 {[%clk 0:03:02.4]}
2... d6 {[%clk 0:03:00.9]} 3. d4 {[%clk 0:03:03.9]} 3... cxd4 {[%clk 0:03:02.4]}
4. Nxd4 {[%clk 0:03:05.8]} 4... Nf6 {[%clk 0:03:03.7]} 5. Nc3 {[%clk 0:03:07.2]}
5... a6 {[%clk 0:03:05.1]} 6. Be3 {[%clk 0:03:08.2]} 6... e6 {[%clk 0:03:05.6]}
7. f3 {[%clk 0:03:09.2]} 7... b5 {[%clk 0:03:03.1]} 8. Qd2 {[%clk 0:03:10]} 8...
Bb7 {[%clk 0:03:02.5]} 9. g4 {[%clk 0:03:10.1]} 9... Nfd7 {[%clk 0:03:02]} 10.
O-O-O {[%clk 0:03:11.4]} 10... Nb6 {[%clk 0:02:58.9]} 11. Qf2 {[%clk 0:03:10.5]}
11... N8d7 {[%clk 0:02:58.7]} 12. Nb3 {[%clk 0:03:08.9]} 12... Rc8 {[%clk
0:02:57.6]} 13. Na5 {[%clk 0:03:05.9]} 13... Ba8 {[%clk 0:02:51]} 14. Qd2 {[%clk
0:03:00.6]} 14... Be7 {[%clk 0:02:43.1]} 15. Bd3 {[%clk 0:03:00.6]} 15... Bf6
{[%clk 0:02:30.9]} 16. Ne2 {[%clk 0:02:32.9]} 16... Na4 {[%clk 0:02:25.8]} 17.
Bd4 {[%clk 0:02:25.1]} 17... Bxd4 {[%clk 0:02:03]} 18. Nxd4 {[%clk 0:02:27]}
18... Qb6 {[%clk 0:02:03.8]} 19. Nab3 {[%clk 0:02:09.9]} 19... Ne5 {[%clk
0:02:02.6]} 20. Qa5 {[%clk 0:01:48.9]} 20... Qa7 {[%clk 0:01:49.8]} 21. Bxb5+
{[%clk 0:01:42.5]} 21... Nc6 {[%clk 0:01:37.7]} 22. Qxa4 {[%clk 0:01:36]} 22...
axb5 {[%clk 0:01:38.1]} 23. Qxa7 {[%clk 0:01:23.4]} 23... Nxa7 {[%clk
0:01:38.3]} 24. Rd2 {[%clk 0:01:06.3]} 24... Ke7 {[%clk 0:01:38.1]} 25. Rhd1
{[%clk 0:01:06.5]} 25... Rhd8 {[%clk 0:01:35.8]} 26. Kb1 {[%clk 0:00:56.2]}
26... h5 {[%clk 0:01:32.3]} 27. g5 {[%clk 0:00:50.5]} 27... g6 {[%clk 0:01:23]}
28. a3 {[%clk 0:00:49.7]} 28... d5 {[%clk 0:01:19.2]} 29. e5 {[%clk 0:00:50.6]}
29... Nc6 {[%clk 0:01:16.8]} 30. Nxc6+ {[%clk 0:00:51.2]} 30... Rxc6 {[%clk
0:01:16.4]} 31. Nd4 {[%clk 0:00:52.8]} 31... Rc4 {[%clk 0:01:11.5]} 32. c3
{[%clk 0:00:52]} 32... Rb8 {[%clk 0:01:08.7]} 33. Kc2 {[%clk 0:00:45.2]} 33...
Rcc8 {[%clk 0:01:01.6]} 34. Kd3 {[%clk 0:00:46.2]} 34... h4 {[%clk 0:01:01.6]}
35. h3 {[%clk 0:00:42.1]} 35... Rh8 {[%clk 0:01:00.5]} 36. f4 {[%clk 0:00:43]}
36... Rb6 {[%clk 0:00:56.4]} 37. Ke3 {[%clk 0:00:41.7]} 37... Bb7 {[%clk
0:00:56.5]} 38. Ra1 {[%clk 0:00:39.3]} 38... Ra8 {[%clk 0:00:55.1]} 39. Rc1
{[%clk 0:00:37.8]} 39... Bc8 {[%clk 0:00:56]} 40. Rg2 {[%clk 0:00:37.8]} 40...
Bd7 {[%clk 0:00:55.6]} 41. Rg4 {[%clk 0:00:38.8]} 41... Rh8 {[%clk 0:00:56.4]}
42. Nf3 {[%clk 0:00:39.7]} 42... Ra6 {[%clk 0:00:50.3]} 43. Rxh4 {[%clk
0:00:37.6]} 43... Raa8 {[%clk 0:00:48]} 44. Rxh8 {[%clk 0:00:38.5]} 44... Rxh8
{[%clk 0:00:48.2]} 45. h4 {[%clk 0:00:39.9]} 45... Bc6 {[%clk 0:00:45]} 46. Nd4
{[%clk 0:00:36.1]} 46... Bd7 {[%clk 0:00:45.4]} 47. Rh1 {[%clk 0:00:36.6]} 47...
Kd8 {[%clk 0:00:44.8]} 48. Kf3 {[%clk 0:00:36.2]} 48... Kc7 {[%clk 0:00:45.7]}
49. Kg4 {[%clk 0:00:35.8]} 49... Kb6 {[%clk 0:00:46.5]} 50. h5 {[%clk
0:00:33.9]} 50... gxh5+ {[%clk 0:00:46.6]} 51. Rxh5 {[%clk 0:00:35]} 51... Rf8
{[%clk 0:00:42.4]} 52. Rh7 {[%clk 0:00:35]} 52... Be8 {[%clk 0:00:38.9]} 53. Kh5
{[%clk 0:00:21.2]} 53... Kc5 {[%clk 0:00:34.4]} 54. Kh6 {[%clk 0:00:20.5]} 54...
Rg8 {[%clk 0:00:35.1]} 55. b3 {[%clk 0:00:14]} 55... Rg6+ {[%clk 0:00:27.3]} 56.
Kh5 {[%clk 0:00:14.5]} 56... Rg8 {[%clk 0:00:28]} 57. Kg4 {[%clk 0:00:11.4]}
57... Kb6 {[%clk 0:00:22.2]} 58. Kg3 {[%clk 0:00:08.5]} 58... Rf8 {[%clk
0:00:21.9]} 59. Kf3 {[%clk 0:00:08.5]} 59... Bd7 {[%clk 0:00:21.2]} 60. Rh6
{[%clk 0:00:09]} 60... Bc8 {[%clk 0:00:21.7]} 61. f5 {[%clk 0:00:09.4]} 61...
Kc7 {[%clk 0:00:20.8]} 62. fxe6 {[%clk 0:00:08.8]} 62... fxe6+ {[%clk
0:00:21.4]} 63. Rf6 {[%clk 0:00:10.2]} 63... Rg8 {[%clk 0:00:21.2]} 64. g6
{[%clk 0:00:10]} 64... Bd7 {[%clk 0:00:20]} 65. Nxe6+ {[%clk 0:00:09.1]} 65...
Kc8 {[%clk 0:00:17.3]} 66. Rf8+ {[%clk 0:00:08.8]} 66... Rxf8+ {[%clk
0:00:15.8]} 67. Nxf8 {[%clk 0:00:10.7]} 67... Bf5 {[%clk 0:00:16.1]} 68. g7
{[%clk 0:00:11.6]} 1-0